[Event "Blixt-SM 2021"]
[Site "Elite Hotel Marina Plaza, Kungstorget 6, Helsingborg, Sweden"]
[Date "2021.11.14"]
[Round "12.4"]
[White "Mauritsson, Sebastian"]
[Black "Kucuksari, Kaan"]
[Result "0-1"]
[TimeControl "3 minutes + 2 seconds per move."]
[WhiteTitle "FM"]
[BlackTitle "FM"]
[WhiteFideId "1707892"]
[BlackFideId "6380166"]
[WhiteElo "2390"]
[BlackElo "2301"]

1. e4 c5 2. Nf3 {[%clk 00:03:04]} d6 {[%clk 00:03:04]} {[%emt 00:00:01]} 3. d4
{[%clk 00:03:06]} cxd4 {[%clk 00:03:06]} 4. Nxd4 {[%clk 00:03:07]} Nf6 {[%clk
00:03:07]} {[%emt 00:00:01]} 5. Nc3 {[%clk 00:03:08]} Nc6 {[%clk 00:03:08]} 6.
Bc4 {[%clk 00:03:09]} {[%emt 00:00:01]} e6 {[%clk 00:03:08]} {[%emt 00:00:03]}
7. Be3 {[%clk 00:03:09]} {[%emt 00:00:02]} Be7 {[%clk 00:03:08]} {[%emt
00:00:01]} 8. Qe2 {[%clk 00:03:10]} {[%emt 00:00:01]} a6 {[%clk 00:03:01]}
{[%emt 00:00:09]} 9. O-O-O {[%clk 00:03:08]} {[%emt 00:00:04]} Bd7 {[%clk
00:02:56]} {[%emt 00:00:07]} 10. Bb3 {[%clk 00:02:48]} {[%emt 00:00:22]} Na5
{[%clk 00:02:56]} {[%emt 00:00:02]} 11. g4 {[%clk 00:02:43]} {[%emt 00:00:08]}
h5 {[%clk 00:02:48]} {[%emt 00:00:09]} 12. h3 {[%clk 00:02:24]} {[%emt
00:00:21]} h4 {[%clk 00:02:42]} {[%emt 00:00:07]} 13. f4 {[%clk 00:02:18]}
{[%emt 00:00:09]} Rc8 {[%clk 00:02:21]} {[%emt 00:00:24]} 14. Kb1 {[%clk
00:02:14]} {[%emt 00:00:05]} Rxc3 {[%clk 00:02:19]} {[%emt 00:00:04]} 15. bxc3
{[%clk 00:02:12]} {[%emt 00:00:04]} Nxe4 {[%clk 00:02:19]} {[%emt 00:00:01]} 16.
Qe1 {[%clk 00:02:06]} {[%emt 00:00:09]} Nxb3 {[%clk 00:02:10]} {[%emt
00:00:11]} 17. cxb3 {[%clk 00:01:57]} {[%emt 00:00:11]} Qa5 {[%clk 00:02:11]}
{[%emt 00:00:01]} 18. Bd2 {[%clk 00:01:50]} {[%emt 00:00:09]} d5 {[%clk
00:02:03]} {[%emt 00:00:10]} 19. Rf1 {[%clk 00:01:30]} {[%emt 00:00:22]} O-O
{[%clk 00:01:53]} {[%emt 00:00:13]} 20. c4 {[%clk 00:01:31]} {[%emt 00:00:02]}
Qb6 {[%clk 00:01:45]} {[%emt 00:00:09]} 21. Be3 {[%clk 00:01:26]} {[%emt
00:00:07]} Bb4 {[%clk 00:01:46]} 22. Nc2 {[%clk 00:01:16]} {[%emt 00:00:14]}
Bxe1 {[%clk 00:01:34]} {[%emt 00:00:14]} 23. Bxb6 {[%clk 00:01:17]} {[%emt
00:00:01]} Nc3+ {[%clk 00:01:35]} 24. Kc1 {[%clk 00:01:10]} {[%emt 00:00:09]}
Nxd1 {[%clk 00:01:34]} {[%emt 00:00:03]} 25. Kxd1 {[%clk 00:00:58]} {[%emt
00:00:15]} Bg3 {[%clk 00:01:32]} {[%emt 00:00:03]} 26. c5 {[%clk 00:00:50]}
{[%emt 00:00:10]} Bb5 {[%clk 00:01:32]} {[%emt 00:00:02]} 27. Rf3 {[%clk
00:00:47]} {[%emt 00:00:05]} g5 {[%clk 00:01:27]} {[%emt 00:00:07]} 28. Bc7
{[%clk 00:00:43]} {[%emt 00:00:06]} Rc8 {[%clk 00:01:26]} {[%emt 00:00:02]} 29.
Bd6 {[%clk 00:00:42]} {[%emt 00:00:02]} Bxf4 {[%clk 00:01:22]} {[%emt
00:00:07]} 30. Bxf4 {[%clk 00:00:39]} {[%emt 00:00:04]} gxf4 {[%clk 00:01:23]}
{[%emt 00:00:01]} 31. Rxf4 {[%clk 00:00:22]} {[%emt 00:00:21]} Rxc5 {[%clk
00:01:23]} {[%emt 00:00:01]} 32. Nd4 {[%clk 00:00:20]} {[%emt 00:00:04]} Rc3
{[%clk 00:01:23]} {[%emt 00:00:02]} 33. Nxb5 {[%clk 00:00:20]} {[%emt
00:00:02]} axb5 {[%clk 00:01:24]} 34. a4 {[%clk 00:00:19]} {[%emt 00:00:04]}
Rxb3 {[%clk 00:01:24]} {[%emt 00:00:02]} 35. a5 {[%clk 00:00:19]} {[%emt
00:00:02]} Ra3 {[%clk 00:01:25]} {[%emt 00:00:02]} 36. g5 {[%clk 00:00:19]}
{[%emt 00:00:01]} Ra4 {[%clk 00:01:20]} {[%emt 00:00:07]} 37. Rf6 {[%clk
00:00:11]} {[%emt 00:00:10]} Kg7 {[%clk 00:01:19]} {[%emt 00:00:03]} 38. Rh6
{[%clk 00:00:11]} {[%emt 00:00:03]} Rxa5 {[%clk 00:01:02]} {[%emt 00:00:18]} 39.
Rxh4 {[%clk 00:00:12]} Ra4 {[%clk 00:01:03]} 40. Rh6 {[%clk 00:00:06]} {[%emt
00:00:08]} Rf4 {[%clk 00:01:03]} {[%emt 00:00:02]} 41. h4 {[%clk 00:00:06]}
{[%emt 00:00:03]} b4 {[%clk 00:00:56]} {[%emt 00:00:09]} 42. Kc2 {[%clk
00:00:06]} {[%emt 00:00:02]} Rf3 {[%clk 00:00:53]} {[%emt 00:00:05]} 43. h5
{[%clk 00:00:06]} {[%emt 00:00:02]} Rf5 {[%clk 00:00:52]} {[%emt 00:00:03]} 44.
Rf6 {[%emt 00:00:06]} 0-1

[Event "Blixt-SM 2021"]
[Site "Elite Hotel Marina Plaza, Kungstorget 6, Helsingborg, Sweden"]
[Date "2021.11.14"]
[Round "1.7"]
[White "Eriksson, Karl"]
[Black "Neretljak, Nedzad"]
[Result "0-1"]
[TimeControl "3 minutes + 2 seconds per move."]
[WhiteFideId "1724037"]
[BlackFideId "1713132"]
[WhiteElo "1703"]
[BlackElo "2148"]

1. e4 {[%clk 00:03:02]} {[%emt 00:00:02]} e6 {[%clk 00:03:03]} {[%emt
00:00:02]} 2. d4 {[%clk 00:03:02]} {[%emt 00:00:02]} d5 {[%clk 00:03:05]} 3. e5
{[%clk 00:03:03]} {[%emt 00:00:02]} c5 {[%clk 00:03:06]} 4. c3 {[%clk
00:03:04]} a6 {[%clk 00:03:05]} {[%emt 00:00:02]} 5. Nf3 {[%clk 00:03:05]}
{[%emt 00:00:02]} Nc6 {[%clk 00:03:06]} {[%emt 00:00:01]} 6. a3 {[%clk
00:03:05]} {[%emt 00:00:02]} b5 {[%clk 00:03:05]} {[%emt 00:00:02]} 7. b4
{[%clk 00:02:59]} {[%emt 00:00:08]} cxd4 {[%clk 00:03:02]} {[%emt 00:00:05]} 8.
cxd4 {[%clk 00:03:00]} {[%emt 00:00:01]} Qb6 {[%clk 00:03:01]} {[%emt
00:00:02]} 9. Bd3 {[%clk 00:02:55]} {[%emt 00:00:08]} Bd7 {[%clk 00:02:56]}
{[%emt 00:00:08]} 10. Be3 {[%clk 00:02:54]} {[%emt 00:00:03]} Rc8 {[%clk
00:02:51]} {[%emt 00:00:05]} 11. O-O {[%clk 00:02:53]} {[%emt 00:00:03]} a5
{[%clk 00:02:49]} {[%emt 00:00:05]} 12. bxa5 {[%clk 00:02:24]} {[%emt
00:00:31]} Nxa5 {[%clk 00:02:49]} {[%emt 00:00:01]} 13. Nbd2 {[%clk 00:02:25]}
{[%emt 00:00:02]} Nc4 {[%clk 00:02:48]} {[%emt 00:00:04]} 14. Qb3 {[%clk
00:02:07]} {[%emt 00:00:19]} Qa6 {[%clk 00:02:35]} {[%emt 00:00:15]} 15. Rfc1
{[%clk 00:01:43]} {[%emt 00:00:25]} Ne7 {[%clk 00:02:25]} {[%emt 00:00:12]} 16.
Ng5 {[%clk 00:01:04]} {[%emt 00:00:41]} Nf5 {[%clk 00:02:21]} {[%emt 00:00:06]}
17. Bxf5 {[%clk 00:00:58]} {[%emt 00:00:09]} exf5 {[%clk 00:02:22]} {[%emt
00:00:02]} 18. Nh3 {[%clk 00:00:29]} {[%emt 00:00:30]} Be7 {[%clk 00:02:03]}
{[%emt 00:00:20]} 19. Nf4 {[%clk 00:00:32]} {[%emt 00:00:02]} Qa8 {[%clk
00:01:59]} {[%emt 00:00:08]} 20. Nd3 {[%clk 00:00:32]} {[%emt 00:00:02]} O-O
{[%clk 00:01:53]} {[%emt 00:00:08]} 21. Nb4 {[%clk 00:00:30]} {[%emt 00:00:05]}
f6 {[%clk 00:01:29]} {[%emt 00:00:25]} 22. Nf3 {[%clk 00:00:28]} {[%emt
00:00:04]} fxe5 {[%clk 00:01:21]} {[%emt 00:00:10]} 23. Nxe5 {[%clk 00:00:29]}
Be6 {[%clk 00:01:22]} {[%emt 00:00:02]} 24. f4 {[%clk 00:00:21]} {[%emt
00:00:10]} Bf6 {[%clk 00:01:09]} {[%emt 00:00:15]} 25. Bf2 {[%clk 00:00:22]}
Nd2 {[%clk 00:01:00]} {[%emt 00:00:11]} 26. Qd3 {[%clk 00:00:21]} {[%emt
00:00:02]} Ne4 {[%clk 00:01:00]} {[%emt 00:00:02]} 27. Rxc8 {[%clk 00:00:21]}
{[%emt 00:00:03]} Rxc8 {[%clk 00:00:59]} {[%emt 00:00:03]} 28. Qxb5 {[%clk
00:00:21]} {[%emt 00:00:02]} Rb8 {[%clk 00:00:35]} {[%emt 00:00:26]} 29. Qc6
{[%clk 00:00:19]} {[%emt 00:00:03]} Qxc6 {[%clk 00:00:29]} {[%emt 00:00:09]} 30.
Nbxc6 {[%clk 00:00:20]} {[%emt 00:00:01]} Rb2 {[%clk 00:00:28]} {[%emt
00:00:03]} 31. Nd3 {[%clk 00:00:15]} {[%emt 00:00:07]} Rd2 {[%clk 00:00:28]}
{[%emt 00:00:02]} 32. Ncb4 {[%clk 00:00:15]} {[%emt 00:00:02]} Nxf2 {[%clk
00:00:26]} {[%emt 00:00:04]} 33. Nxf2 {[%clk 00:00:16]} Bxd4 {[%clk 00:00:27]}
{[%emt 00:00:01]} 34. Rf1 {[%clk 00:00:11]} {[%emt 00:00:07]} Be3 {[%clk
00:00:25]} {[%emt 00:00:04]} 35. g3 {[%clk 00:00:11]} {[%emt 00:00:01]} d4
{[%clk 00:00:26]} {[%emt 00:00:01]} 36. a4 {[%clk 00:00:11]} {[%emt 00:00:02]}
Rb2 {[%clk 00:00:24]} {[%emt 00:00:03]} 37. Nbd3 {[%clk 00:00:12]} {[%emt
00:00:02]} Ra2 {[%clk 00:00:25]} 38. Kg2 {[%clk 00:00:08]} {[%emt 00:00:05]}
Bd5+ {[%clk 00:00:27]} 39. Kh3 {[%clk 00:00:09]} Rxa4 {[%clk 00:00:28]} 40. Ne5
{[%clk 00:00:08]} {[%emt 00:00:04]} g6 {[%clk 00:00:29]} 41. Nd1 {[%clk
00:00:08]} {[%emt 00:00:02]} Ra2 {[%clk 00:00:24]} {[%emt 00:00:07]} 42. Nd3
{[%clk 00:00:03]} {[%emt 00:00:07]} Bg2+ {[%clk 00:00:25]} {[%emt 00:00:01]}
0-1

[Event "Blixt-SM 2021"]
[Site "Elite Hotel Marina Plaza, Kungstorget 6, Helsingborg, Sweden"]
[Date "2021.11.14"]
[Round "3.5"]
[White "Nilsson, Patrik"]
[Black "Fakhr Eldin, Majed"]
[Result "1-0"]
[TimeControl "3 minutes + 2 seconds per move."]
[WhiteFideId "1708171"]
[BlackFideId "1744054"]
[WhiteElo "2143"]
[BlackElo "1548"]

1. d4 {[%clk 00:03:02]} {[%emt 00:00:02]} Nf6 {[%clk 00:03:03]} {[%emt
00:00:02]} 2. Bf4 {[%clk 00:03:03]} {[%emt 00:00:01]} g6 {[%clk 00:02:57]}
{[%emt 00:00:07]} 3. Nc3 {[%clk 00:03:03]} {[%emt 00:00:02]} d5 {[%clk
00:02:58]} {[%emt 00:00:01]} 4. e3 {[%clk 00:03:04]} {[%emt 00:00:02]} Bg7
{[%clk 00:02:58]} 5. h4 {[%clk 00:03:05]} {[%emt 00:00:01]} O-O {[%clk
00:02:49]} {[%emt 00:00:11]} 6. h5 {[%clk 00:03:05]} {[%emt 00:00:01]} Nxh5
{[%clk 00:02:43]} {[%emt 00:00:09]} 7. Rxh5 {[%clk 00:03:06]} {[%emt 00:00:02]}
gxh5 {[%clk 00:02:43]} {[%emt 00:00:01]} 8. Qxh5 {[%clk 00:03:06]} {[%emt
00:00:02]} Qd7 {[%clk 00:02:08]} {[%emt 00:00:38]} 9. Bd3 {[%clk 00:02:36]}
{[%emt 00:00:31]} h6 {[%clk 00:02:07]} {[%emt 00:00:03]} 10. O-O-O {[%clk
00:01:55]} {[%emt 00:00:43]} Qg4 {[%clk 00:01:51]} {[%emt 00:00:18]} 11. Qh2
{[%clk 00:01:54]} {[%emt 00:00:03]} Bf5 {[%clk 00:01:13]} {[%emt 00:00:40]} 12.
Be2 {[%clk 00:01:30]} {[%emt 00:00:27]} Qg6 {[%clk 00:01:13]} 13. Bh5 {[%clk
00:01:25]} {[%emt 00:00:07]} Qe6 {[%clk 00:00:54]} {[%emt 00:00:20]} 14. Nf3
{[%clk 00:01:16]} {[%emt 00:00:12]} Nd7 {[%clk 00:00:43]} {[%emt 00:00:13]} 15.
Nh4 {[%clk 00:00:49]} {[%emt 00:00:30]} Bg4 {[%clk 00:00:25]} {[%emt 00:00:20]}
16. Bxg4 {[%clk 00:00:46]} {[%emt 00:00:04]} Qxg4 {[%clk 00:00:26]} {[%emt
00:00:02]} 17. f3 {[%clk 00:00:45]} {[%emt 00:00:04]} Qe6 {[%clk 00:00:23]}
{[%emt 00:00:05]} 18. g4 {[%clk 00:00:42]} {[%emt 00:00:04]} c5 {[%clk
00:00:18]} {[%emt 00:00:07]} 19. Nf5 {[%clk 00:00:42]} {[%emt 00:00:02]} cxd4
{[%clk 00:00:11]} {[%emt 00:00:09]} 20. exd4 {[%clk 00:00:40]} {[%emt
00:00:05]} Rac8 {[%clk 00:00:11]} {[%emt 00:00:02]} 21. Nxh6+ {[%clk 00:00:32]}
{[%emt 00:00:09]} Bxh6 {[%clk 00:00:10]} {[%emt 00:00:03]} 22. Bxh6 {[%clk
00:00:33]} {[%emt 00:00:02]} Rfd8 {[%clk 00:00:08]} {[%emt 00:00:03]} 23. Bf4
{[%clk 00:00:30]} {[%emt 00:00:05]} Nb6 {[%clk 00:00:07]} {[%emt 00:00:03]} 24.
Rh1 {[%clk 00:00:30]} {[%emt 00:00:02]} Qf6 {[%clk 00:00:07]} {[%emt 00:00:02]}
25. Be5 {[%clk 00:00:24]} {[%emt 00:00:07]} Qg5+ {[%clk 00:00:03]} {[%emt
00:00:06]} 26. Kb1 {[%clk 00:00:20]} {[%emt 00:00:06]} f6 {[%clk 00:00:05]} 27.
Qh7+ {[%clk 00:00:17]} {[%emt 00:00:04]} Kf8 {[%clk 00:00:06]} {[%emt
00:00:02]} 28. Qh8+ {[%clk 00:00:07]} {[%emt 00:00:11]} Kf7 {[%clk 00:00:07]}
29. Qh7+ {[%clk 00:00:08]} Ke8 {[%clk 00:00:07]} {[%emt 00:00:01]} 30. Bg3
{[%emt 00:00:05]} Nc4 {[%clk 00:00:07]} 31. Re1 {[%clk 00:00:06]} {[%emt
00:00:04]} Kd7 {[%clk 00:00:08]} {[%emt 00:00:01]} 32. Qxe7+ {[%clk 00:00:07]}
{[%emt 00:00:01]} Kc6 {[%clk 00:00:08]} {[%emt 00:00:02]} 33. Qc5+ {[%clk
00:00:08]} Kd7 {[%clk 00:00:09]} {[%emt 00:00:02]} 34. Re7# {[%clk 00:00:09]}
1-0

[Event "Blixt-SM 2021"]
[Site "Elite Hotel Marina Plaza, Kungstorget 6, Helsingborg, Sweden"]
[Date "2021.11.14"]
[Round "5.3"]
[White "Smith, Axel"]
[Black "Wellevit, Tomas"]
[Result "1-0"]
[TimeControl "3 minutes + 2 seconds per move."]
[WhiteTitle "GM"]
[WhiteFideId "1707930"]
[BlackFideId "1731963"]
[WhiteElo "2473"]
[BlackElo "2113"]

1. e4 {[%clk 00:03:04]} e6 {[%clk 00:03:03]} {[%emt 00:00:02]} 2. d4 {[%clk
00:03:05]} d5 {[%clk 00:03:04]} 3. exd5 {[%clk 00:03:06]} {[%emt 00:00:02]}
exd5 {[%clk 00:03:06]} 4. Nf3 {[%clk 00:03:08]} Nf6 {[%clk 00:03:07]} 5. Bd3
{[%clk 00:03:09]} {[%emt 00:00:01]} Be7 {[%clk 00:03:08]} 6. O-O {[%clk
00:03:09]} {[%emt 00:00:02]} O-O {[%clk 00:03:09]} {[%emt 00:00:02]} 7. h3
{[%clk 00:03:07]} {[%emt 00:00:03]} Nc6 {[%clk 00:03:07]} {[%emt 00:00:04]} 8.
c3 {[%clk 00:03:07]} {[%emt 00:00:02]} Be6 {[%clk 00:03:01]} {[%emt 00:00:08]}
9. Re1 {[%clk 00:03:03]} {[%emt 00:00:06]} Qd7 {[%clk 00:02:51]} {[%emt
00:00:12]} 10. Qc2 {[%clk 00:02:56]} {[%emt 00:00:09]} g6 {[%clk 00:02:32]}
{[%emt 00:00:21]} 11. Bh6 {[%clk 00:02:44]} {[%emt 00:00:13]} Rfe8 {[%clk
00:02:34]} {[%emt 00:00:01]} 12. Nbd2 {[%clk 00:02:43]} {[%emt 00:00:02]} Bf8
{[%clk 00:02:34]} {[%emt 00:00:02]} 13. Bxf8 {[%clk 00:02:35]} {[%emt
00:00:11]} Rxf8 {[%clk 00:02:34]} {[%emt 00:00:02]} 14. Re3 {[%clk 00:02:27]}
{[%emt 00:00:10]} Nh5 {[%clk 00:02:30]} {[%emt 00:00:06]} 15. Rae1 {[%clk
00:02:05]} {[%emt 00:00:24]} Nf4 {[%clk 00:02:24]} {[%emt 00:00:09]} 16. Bf1
{[%clk 00:01:58]} {[%emt 00:00:08]} Bf5 {[%clk 00:02:13]} {[%emt 00:00:14]} 17.
Qb3 {[%clk 00:02:00]} Na5 {[%clk 00:02:07]} {[%emt 00:00:08]} 18. Qb4 {[%clk
00:01:51]} {[%emt 00:00:11]} Nc6 {[%clk 00:02:00]} {[%emt 00:00:09]} 19. Qb3
{[%clk 00:01:46]} {[%emt 00:00:06]} a6 {[%clk 00:01:51]} {[%emt 00:00:12]} 20.
Ne5 {[%clk 00:01:43]} {[%emt 00:00:06]} Nxe5 {[%clk 00:01:43]} {[%emt
00:00:10]} 21. Rxe5 {[%clk 00:01:44]} Be6 {[%clk 00:01:36]} {[%emt 00:00:09]}
22. h4 {[%clk 00:01:27]} {[%emt 00:00:18]} c6 {[%clk 00:01:29]} {[%emt
00:00:09]} 23. g3 {[%clk 00:01:25]} {[%emt 00:00:04]} Nh5 {[%clk 00:01:26]}
{[%emt 00:00:05]} 24. Qd1 {[%clk 00:01:13]} {[%emt 00:00:14]} Bg4 {[%clk
00:01:20]} {[%emt 00:00:07]} 25. Be2 {[%clk 00:01:11]} {[%emt 00:00:05]} Nf6
{[%clk 00:01:14]} {[%emt 00:00:09]} 26. Bxg4 {[%clk 00:01:04]} {[%emt
00:00:08]} Nxg4 {[%clk 00:01:10]} {[%emt 00:00:06]} 27. Re7 {[%clk 00:01:04]}
{[%emt 00:00:03]} Qc8 {[%clk 00:01:11]} 28. Nf3 {[%clk 00:00:56]} {[%emt
00:00:10]} Nf6 {[%clk 00:01:11]} {[%emt 00:00:02]} 29. Ng5 {[%clk 00:00:47]}
{[%emt 00:00:12]} h6 {[%clk 00:00:54]} {[%emt 00:00:19]} 30. Qf3 {[%clk
00:00:47]} {[%emt 00:00:02]} hxg5 {[%clk 00:00:28]} {[%emt 00:00:27]} 31. Qxf6
{[%clk 00:00:47]} {[%emt 00:00:02]} gxh4 {[%clk 00:00:30]} {[%emt 00:00:01]} 32.
Qxh4 {[%emt 00:00:03]} Qf5 {[%clk 00:00:28]} {[%emt 00:00:02]} 33. Rxb7 {[%clk
00:00:41]} {[%emt 00:00:08]} Rae8 {[%clk 00:00:29]} {[%emt 00:00:01]} 34. Rbe7
{[%clk 00:00:32]} {[%emt 00:00:11]} Rxe7 {[%clk 00:00:26]} {[%emt 00:00:05]} 35.
Qxe7 {[%clk 00:00:32]} {[%emt 00:00:03]} Qc2 {[%clk 00:00:21]} {[%emt
00:00:07]} 36. Qe2 {[%clk 00:00:26]} {[%emt 00:00:08]} Qf5 {[%clk 00:00:20]}
{[%emt 00:00:03]} 37. Qxa6 {[%clk 00:00:25]} {[%emt 00:00:02]} Kg7 {[%clk
00:00:19]} {[%emt 00:00:03]} 38. Qe2 {[%clk 00:00:17]} {[%emt 00:00:10]} Qh3
{[%clk 00:00:12]} {[%emt 00:00:09]} 39. Qf1 {[%clk 00:00:17]} {[%emt 00:00:02]}
Qf5 {[%clk 00:00:13]} {[%emt 00:00:02]} 40. Qe2 {[%clk 00:00:17]} {[%emt
00:00:02]} Qh3 {[%clk 00:00:14]} 41. Qe5+ {[%clk 00:00:15]} {[%emt 00:00:04]}
Kg8 {[%clk 00:00:15]} 42. Qe7 {[%clk 00:00:13]} {[%emt 00:00:05]} Ra8 {[%clk
00:00:12]} {[%emt 00:00:05]} 43. a3 {[%clk 00:00:14]} Rb8 {[%clk 00:00:14]} 44.
b4 {[%clk 00:00:12]} {[%emt 00:00:03]} Ra8 {[%clk 00:00:14]} {[%emt 00:00:02]}
45. Qf6 {[%clk 00:00:07]} {[%emt 00:00:07]} Qg4 {[%clk 00:00:11]} {[%emt
00:00:05]} 46. Kg2 {[%clk 00:00:07]} {[%emt 00:00:03]} Rc8 {[%clk 00:00:05]}
{[%emt 00:00:08]} 47. Re7 {[%clk 00:00:07]} {[%emt 00:00:01]} Rf8 {[%clk
00:00:05]} {[%emt 00:00:02]} 48. Qxc6 {[%clk 00:00:08]} {[%emt 00:00:02]} 1-0

[Event "Blixt-SM 2021"]
[Site "Elite Hotel Marina Plaza, Kungstorget 6, Helsingborg, Sweden"]
[Date "2021.11.14"]
[Round "7.1"]
[White "Smith, Axel"]
[Black "Jepson, Christian"]
[Result "1/2-1/2"]
[TimeControl "3 minutes + 2 seconds per move."]
[WhiteTitle "GM"]
[BlackTitle "IM"]
[WhiteFideId "1707930"]
[BlackFideId "1701185"]
[WhiteElo "2473"]
[BlackElo "2412"]

1. e4 {[%clk 00:03:04]} {[%emt 00:01:22]} e6 {[%clk 00:03:01]} {[%emt
00:00:04]} 2. d4 d5 3. exd5 {[%clk 00:03:06]} exd5 {[%clk 00:03:03]} 4. Nf3
{[%clk 00:03:08]} Nf6 {[%clk 00:03:03]} {[%emt 00:00:03]} 5. Bd3 {[%clk
00:03:09]} Bd6 {[%clk 00:03:03]} {[%emt 00:00:03]} 6. Qe2+ {[%clk 00:03:10]}
Qe7 {[%clk 00:03:03]} {[%emt 00:00:02]} 7. Qxe7+ {[%clk 00:03:10]} {[%emt
00:00:02]} Kxe7 {[%clk 00:03:03]} {[%emt 00:00:02]} 8. O-O {[%clk 00:03:07]}
{[%emt 00:00:06]} Re8 {[%clk 00:03:03]} {[%emt 00:00:01]} 9. Bg5 {[%clk
00:02:55]} {[%emt 00:00:14]} Nbd7 {[%clk 00:02:59]} {[%emt 00:00:06]} 10. Re1+
{[%clk 00:02:31]} {[%emt 00:00:26]} Kf8 {[%clk 00:02:56]} {[%emt 00:00:05]} 11.
Rxe8+ {[%clk 00:02:29]} {[%emt 00:00:04]} Kxe8 {[%clk 00:02:57]} 12. Nc3 {[%clk
00:02:26]} {[%emt 00:00:06]} c6 {[%clk 00:02:52]} {[%emt 00:00:06]} 13. Re1+
{[%clk 00:02:27]} Kf8 {[%clk 00:02:53]} {[%emt 00:00:02]} 14. Ne5 {[%clk
00:02:21]} {[%emt 00:00:08]} h6 {[%clk 00:02:34]} {[%emt 00:00:21]} 15. Bh4
{[%clk 00:02:07]} {[%emt 00:00:16]} Nb6 {[%clk 00:02:27]} {[%emt 00:00:09]} 16.
Bxf6 {[%clk 00:01:59]} {[%emt 00:00:10]} gxf6 {[%clk 00:02:28]} {[%emt
00:00:02]} 17. Nf3 {[%clk 00:02:00]} Bb4 {[%clk 00:02:13]} {[%emt 00:00:17]} 18.
Re3 {[%clk 00:01:49]} {[%emt 00:00:13]} Bxc3 {[%clk 00:02:07]} {[%emt
00:00:08]} 19. bxc3 {[%clk 00:01:50]} Be6 {[%clk 00:02:08]} 20. Nh4 {[%clk
00:01:42]} {[%emt 00:00:10]} Na4 {[%clk 00:02:08]} {[%emt 00:00:03]} 21. Be2
{[%clk 00:01:02]} {[%emt 00:00:41]} Re8 {[%clk 00:01:50]} {[%emt 00:00:20]} 22.
Kf1 {[%clk 00:01:02]} {[%emt 00:00:02]} b5 {[%clk 00:01:45]} {[%emt 00:00:08]}
23. Ke1 {[%clk 00:01:03]} {[%emt 00:00:01]} Bd7 {[%clk 00:01:17]} {[%emt
00:00:31]} 24. Rxe8+ {[%clk 00:01:01]} {[%emt 00:00:04]} Kxe8 {[%clk 00:01:16]}
{[%emt 00:00:02]} 25. Kd2 {[%clk 00:01:02]} Ke7 {[%clk 00:01:13]} {[%emt
00:00:05]} 26. Bd3 {[%clk 00:01:02]} {[%emt 00:00:02]} Nb6 {[%clk 00:00:59]}
{[%emt 00:00:17]} 27. g3 {[%clk 00:00:59]} {[%emt 00:00:06]} Bg4 {[%clk
00:00:55]} {[%emt 00:00:05]} 28. f3 {[%clk 00:00:57]} {[%emt 00:00:05]} Be6
{[%clk 00:00:56]} {[%emt 00:00:01]} 29. g4 {[%clk 00:00:43]} {[%emt 00:00:16]}
Nc8 {[%clk 00:00:54]} {[%emt 00:00:04]} 30. Ng2 {[%clk 00:00:37]} {[%emt
00:00:08]} Nd6 {[%clk 00:00:48]} {[%emt 00:00:07]} 31. Ne3 {[%clk 00:00:36]}
{[%emt 00:00:03]} a5 {[%clk 00:00:46]} {[%emt 00:00:04]} 32. a3 {[%emt
00:00:03]} a4 {[%clk 00:00:45]} {[%emt 00:00:03]} 33. h4 {[%clk 00:00:36]} Bd7
{[%clk 00:00:43]} {[%emt 00:00:05]} 34. Ke2 {[%clk 00:00:34]} Kf8 {[%clk
00:00:35]} {[%emt 00:00:14]} 35. Kf2 {[%clk 00:00:36]} Ke7 {[%emt 00:00:11]} 36.
Kg3 {[%emt 00:00:01]} Kf8 {[%clk 00:00:27]} 37. Kf4 {[%clk 00:00:39]} Ke7
{[%clk 00:00:27]} {[%emt 00:00:01]} 38. Kg3 {[%clk 00:00:40]} {[%emt 00:00:01]}
Kf8 {[%clk 00:00:29]} 39. Kf2 {[%clk 00:00:41]} Ke7 {[%clk 00:00:30]} 40. Kg2
{[%clk 00:00:43]} Kf8 {[%clk 00:00:30]} {[%emt 00:00:03]} 41. Kg3 {[%clk
00:00:44]} Ke7 {[%clk 00:00:29]} {[%emt 00:00:02]} 42. Kf4 {[%clk 00:00:45]}
Kf8 {[%clk 00:00:28]} {[%emt 00:00:04]} 43. Kg3 {[%clk 00:00:39]} {[%emt
00:00:08]} Ke7 {[%clk 00:00:29]} 44. Kf2 {[%clk 00:00:40]} Kf8 {[%clk
00:00:27]} {[%emt 00:00:05]} 45. Ke2 {[%clk 00:00:39]} {[%emt 00:00:04]} Ke7
{[%clk 00:00:28]} 46. Kf2 {[%clk 00:00:40]} Kf8 {[%clk 00:00:29]} {[%emt
00:00:02]} 47. Kg3 {[%clk 00:00:38]} {[%emt 00:00:04]} Ke7 {[%clk 00:00:31]} 48.
Kf2 {[%clk 00:00:39]} Kf8 {[%clk 00:00:32]} {[%emt 00:00:02]} 49. Ng2 {[%clk
00:00:38]} {[%emt 00:00:03]} Ke7 {[%clk 00:00:32]} {[%emt 00:00:02]} 50. Ke3
{[%clk 00:00:40]} Kf8 {[%clk 00:00:30]} {[%emt 00:00:05]} 51. Nf4 {[%clk
00:00:41]} Ke7 {[%clk 00:00:30]} {[%emt 00:00:01]} 52. Nh5 {[%clk 00:00:42]}
Be6 {[%clk 00:00:30]} {[%emt 00:00:02]} 53. Kf4 {[%clk 00:00:40]} {[%emt
00:00:03]} Bd7 {[%clk 00:00:31]} 54. Ng7 {[%clk 00:00:41]} Be6 {[%clk
00:00:32]} {[%emt 00:00:01]} 55. Nh5 {[%clk 00:00:43]} Bd7 {[%clk 00:00:34]} 56.
Ng3 {[%clk 00:00:44]} Be6 {[%clk 00:00:35]} {[%emt 00:00:02]} 57. Nf1 {[%clk
00:00:44]} {[%emt 00:00:01]} Bd7 {[%clk 00:00:36]} {[%emt 00:00:01]} 58. Ne3
{[%clk 00:00:46]} Be6 {[%clk 00:00:37]} 59. Kg3 {[%clk 00:00:47]} Bd7 {[%clk
00:00:38]} {[%emt 00:00:03]} 60. Kf4 {[%clk 00:00:46]} {[%emt 00:00:03]} Be6
{[%clk 00:00:40]} {[%emt 00:00:01]} 61. Nf1 {[%clk 00:00:45]} {[%emt 00:00:02]}
Bd7 {[%clk 00:00:41]} {[%emt 00:00:01]} 62. Ng3 {[%clk 00:00:46]} Be6 {[%clk
00:00:43]} 63. Nf1 {[%clk 00:00:39]} {[%emt 00:00:09]} Bd7 {[%clk 00:00:45]} 64.
Ne3 Be6 {[%emt 00:00:02]} 65. Kg3 {[%clk 00:00:42]} Bd7 {[%clk 00:00:48]} 66.
Kf2 Be6 {[%emt 00:00:02]} 67. Ng2 {[%clk 00:00:44]} {[%emt 00:00:01]} Bd7
{[%clk 00:00:50]} 68. Ke3 {[%clk 00:00:45]} {[%emt 00:00:01]} Be6 {[%clk
00:00:52]} 69. Ke2 {[%clk 00:00:46]} {[%emt 00:00:02]} Bd7 70. Kf2 {[%clk
00:00:48]} Be6 {[%clk 00:00:54]} 71. Ke3 {[%clk 00:00:49]} Bd7 {[%clk
00:00:56]} 72. Nf4 {[%clk 00:00:50]} Be6 {[%clk 00:00:57]} {[%emt 00:00:01]} 73.
Ne2 {[%clk 00:00:47]} {[%emt 00:00:05]} Bd7 {[%clk 00:00:58]} 74. Ng3 {[%clk
00:00:48]} 1/2-1/2